{"text_format":"3","workbook":"xlsx","n_sheets":2,"sheets":["PRICING SCHEDULE","Sheet1"],"not_rendered":{"images":1,"defined_names":3},"read":"whole","date_system":"1900"}

{"sheet":"PRICING SCHEDULE","index":0,"n_rows":84,"n_cols":11,"rows_kept":84,"merged":[[2,1,2,2],[3,1,3,2],[4,1,4,2],[12,3,12,4],[13,3,13,4],[13,6,15,6],[14,3,14,4],[15,3,15,4],[17,5,17,7],[19,1,19,2],[20,0,20,2],[74,0,74,10],[80,1,83,1],[80,3,80,4],[80,5,80,6],[81,3,81,4],[82,3,82,4],[82,5,82,6],[83,3,83,4],[83,5,83,6]]}
[null,"SUPPLY CHAIN MANAGEMENT"]
[null,"Pricing schedule"]
["RFx No","RFB 2774-2023"]
["RFx Title","SUPPLY AND DELIVERY OF LAN INFRASTRUCTURE EQUIPMENT FOR VARIOUS DEPARTMENTS OF HEALTH FACILITIES IN CAPE TOWN, WITH CISCO SUPPORT FOR A PERIOD OF THREE (3) YEARS"]
["Bidder Name "]
[]
["1. INSTRUCTION FOR COMPLETING THE PRICING SCHEDULE"]
["(a)  THIS PRICING SCHEDULE MUST BE SUBMITTED SEPARATELY FROM THE TECHNICAL RESPONSE, failing which the BID may be DISQUALIFIED."]
["(b)  Bidder must complete/enter YELLOW cells only"]
["(c)  Unit and Line prices must be VAT EXCLUSIVE and in South African Rand (ZAR) currency."]
["(e) The price must include all cost to deliver the goods or render the service, including all applicable taxes, duty fees, logistics/delivery, storage, labour, overtime and subsistance and travel"]
["(f)  Prices that are dependent on Rate of Exchange (ROE) must use ROE indicated below, then enter in Column \"Forex %\" the percentage of the price that is ROE dependent (0% means the price is not ROE dependent)"]
[null,"Foreign currency",null,"South African Rand (ZAR) exchange rate "]
[null,"1 US Dollar",null,18.88,null,null,"Mark with an X, which ROE is applicable"]
[null,"1 Euro",null,20.47]
[null,"1 Pound (UK)",null,23.99]
[]
[]
["Item No","Goods/Service description",null,"Unit of measure","Forex %","Qty ","Unit Price \n(Excl VAT)","Line Price Y1","Forex Price portion","BRAND / MODEL (if applicable)","Price clarification comment"]
[1,"Supply and delivery of LAN Infrastructure equipment for various Departments of Health facilities, Cape Town",{"$nulls":5}," ",{"$f":"SUBTOTAL(9,I22:I74)","v":0}]
["LAN Infrastructure"]
["1.0","C9800-40-K9","Cisco Catalyst 9800-40 Wireless Controller",null,{"v":0,"d":"0%"},3,0,{"$f":"G22*F22","v":0},{"$f":"E22*H22","v":0}]
["1.0.1","CON-SSSNT-C98004KA","SOLN SUPP 8X5XNBD Cisco Catalyst 9800-40 Wireless Controll",null,{"v":0,"d":"0%"},3,0,{"$f":"G23*F23","v":0},{"$f":"E23*H23","v":0}]
["1.1","LIC-C9800-DTLS-K9","Cisco Catalyst 9800 Series Wireless Controller DTLS License",null,{"v":0,"d":"0%"},3,0,{"$f":"G24*F24","v":0},{"$f":"E24*H24","v":0}]
["1.2","SC980040K9-173","Cisco Catalyst 9800-40 Wireless Controller",null,{"v":0,"d":"0%"},3,0,0,0]
["1.3","C9800-PWR-BLANK","Cisco 9800 Wireless Controller PS Blank",null,{"v":0,"d":"0%"},3,0,0,0]
["1.4","C9800-AC-750W-R","Cisco Catalyst 9800-40 750W AC Power Supply",null,{"v":0,"d":"0%"},3,0,0,0]
["1.5","CAB-IND","AC Power Cord (India)",null,{"v":0,"d":"0%"},3,0,0,0]
["1.6","NETWORK-PNP-LIC","Network Plug-n-Play Connect for zero-touch device deployment",null,{"v":0,"d":"0%"},3,0,0,0]
["2.0","C9800-L-F-K9","Cisco Catalyst 9800-L Wireless Controller_Fiber Uplink",null,{"v":0,"d":"0%"},8,0,0,0]
["2.0.1","CON-SSSNT-C9800LFL","SOLN SUPP 8X5XNBD Cisco Catalyst 9800-L Wireless Controlle",null,{"v":0,"d":"0%"},8,0,0,0]
["2.1","LIC-C9800-DTLS-K9","Cisco Catalyst 9800 Series Wireless Controller DTLS License",null,{"v":0,"d":"0%"},8,0,0,0]
["2.2","SC9800LK9-173","Cisco Catalyst 9800-L Wireless Controller",null,{"v":0,"d":"0%"},8,0,0,0]
["2.3","C9800L-RMNT","C9800 Wireless Controller Rack Mount Tray",null,{"v":0,"d":"0%"},8,0,0,0]
["2.4","C9800-AC-110W","Cisco Catalyst 9800 L Wireless Controller Power Supply",null,{"v":0,"d":"0%"},8,0,0,0]
["2.5","NETWORK-PNP-LIC","Network Plug-n-Play Connect for zero-touch device deployment",null,{"v":0,"d":"0%"},8,0,0,0]
["2.6","CAB-AC-C5-SAF","AC Power Cord, Type C5,  South Africa",null,{"v":0,"d":"0%"},8,0,0,0]
["3.0","C9200L-48P-4X-E","Catalyst 9200L 48-port PoE+, 4 x 10G, Network Essentials",null,{"v":0,"d":"0%"},80,0,0,0]
["3.0.1","CON-SSSNT-C9200L4X","SOLN SUPP 8X5XNBD Catalyst 9200L 48-port PoE+, 4 x 10G, Ne",null,{"v":0,"d":"0%"},80,0,0,0]
["3.1","C9200L-NW-E-48","C9200L Network Essentials, 48-port license",null,{"v":0,"d":"0%"},80,0,0,0]
["3.2","CAB-TA-IN","India AC Type A Power Cable",null,{"v":0,"d":"0%"},160,0,0,0]
["3.3","C9200-STACK-BLANK","Catalyst 9200 Blank Stack Module",null,{"v":0,"d":"0%"},160,0,0,0]
["3.4","C9200L-DNA-E-48","C9200L Cisco DNA Essentials, 48-port Term license",null,{"v":0,"d":"0%"},80,0,0,0]
["3.4.0.1","C9200L-DNA-E-48-3Y","C9200L Cisco DNA Essentials, 48-port, 3 Year Term license",null,{"v":0,"d":"0%"},80,0,0,0]
["3.4.0.2","CON-SSTCM-C92LE48","SOLN SUPP SW SUBC9200L Cisco DNA Ess",null,{"v":0,"d":"0%"},80,0,0,0]
["3.5","NETWORK-PNP-LIC","Network Plug-n-Play Connect for zero-touch device deployment",null,{"v":0,"d":"0%"},80,0,0,0]
["3.6","PWR-C5-1KWAC/2","1KW AC Config 5 Power Supply - Secondary Power Supply",null,{"v":0,"d":"0%"},80,0,0,0]
["4.0","C9200L-24P-4X-E","Catalyst 9200L 24-port PoE+, 4 x 10G, Network Essentials",null,{"v":0,"d":"0%"},40,0,{"$f":"G48*F48","v":0},{"$f":"E48*H48","v":0}]
["4.0.1","CON-SSSNT-C920024X","SOLN SUPP 8X5XNBD Catalyst 9200L 24-port PoE+, 4 x 10G, Ne",null,{"v":0,"d":"0%"},40,0,0,0]
["4.1","C9200L-NW-E-24","C9200L Network Essentials, 24-port license",null,{"v":0,"d":"0%"},40,0,0,0]
["4.2","CAB-TA-IN","India AC Type A Power Cable",null,{"v":0,"d":"0%"},80,0,0,0]
["4.3","C9200-STACK-BLANK","Catalyst 9200 Blank Stack Module",null,{"v":0,"d":"0%"},80,0,0,0]
["4.4","C9200L-DNA-E-24","C9200L Cisco DNA Essentials, 24-port Term license",null,{"v":0,"d":"0%"},40,0,0,0]
["4.4.0.1","C9200L-DNA-E-24-3Y","C9200L Cisco DNA Essentials, 24-port, 3 Year Term license",null,{"v":0,"d":"0%"},40,0,0,0]
["4.4.0.2","CON-SSTCM-C92LE24","SOLN SUPP SW SUBC9200L Cisco DNA Ess",null,{"v":0,"d":"0%"},40,0,0,0]
["4.5","NETWORK-PNP-LIC","Network Plug-n-Play Connect for zero-touch device deployment",null,{"v":0,"d":"0%"},40,0,0,0]
["4.6","PWR-C5-600WAC/2","600W AC Config 5 Power Supply - Secondary Power Supply",null,{"v":0,"d":"0%"},40,0,0,0]
["5.0","CW9162I-ROW","Catalyst Wireless 9162I AP (W6E, tri-band 2x2) w/Reg ROW",null,{"v":0,"d":"0%"},3900,0,0,0]
["5.0.1","CON-SSSNT-CW9162RW","SOLN SUPP 8X5XNBD CAT WLS 9162I AP W6E tri-band 2x2 ROW",null,{"v":0,"d":"0%"},3900,0,0,0]
["5.1","SW9162-CAPWAP-K9","Capwap software for Catalyst 9162I",null,{"v":0,"d":"0%"},3900,0,0,0]
["5.2","AIR-AP-T-RAIL-R","Ceiling Grid Clip for APs & Cellular Gateways-Recessed",null,{"v":0,"d":"0%"},3900,0,0,0]
["5.3","AIR-AP-BRACKET-1","802.11 AP Low Profile Mounting Bracket (Default)",null,{"v":0,"d":"0%"},3900,0,0,0]
["5.4","CDNA-E-C9162","Wireless Cisco DNA  On-Prem Essential, 9162 Tracking",null,{"v":0,"d":"0%"},3900,0,0,0]
["5.4.0.1","DNA-E-3Y-C9162","C9162I Cisco DNA On-Prem Advantage,5Y Term,Trk Lic",null,{"v":0,"d":"0%"},3900,0,0,0]
["5.5","AIR-DNA-E","Wireless Cisco DNA On-Prem Essential, Term Lic",null,{"v":0,"d":"0%"},3900,0,0,0]
["5.5.0.1","AIR-DNA-E-3Y","Wireless Cisco DNA On-Prem Essential, 3Y Term Lic",null,{"v":0,"d":"0%"},3900,0,0,0]
["5.5.0.2","CON-SSTCM-AIRDNAE","SOLN SUPP SW SUBAironet CISCO DNA Es",null,{"v":0,"d":"0%"},3900,0,0,0]
["5.6","PI-LFAS-AP-T","Prime AP Term Licenses",null,{"v":0,"d":"0%"},3900,0,0,0]
["5.6.0.1","PI-LFAS-AP-T-3Y","PI Dev Lic for Lifecycle & Assurance Term 3Y",null,{"v":0,"d":"0%"},3900,0,0,0]
["5.7","AIR-DNA-E-T","Wireless Cisco DNA On-Prem Essential, Term, Tracker Lic",null,{"v":0,"d":"0%"},3900,0,0,0]
["5.7.0.1","AIR-DNA-E-T-3Y","Wireless Cisco DNA On-Prem Essential, 3Y Term, Tracker Lic",null,{"v":0,"d":"0%"},3900,0,0,0]
["5.8","AIR-DNA-NWSTACK-E","AIR CISCO DNA Perpetual Network Stack",null,{"v":0,"d":"0%"},3900,0,0,0]
["5.9","NETWORK-PNP-LIC","Network Plug-n-Play Connect for zero-touch device deployment",null,{"v":0,"d":"0%"},3900,0,0,0]
["5.10","CW9162I-MULTI","Minimum Quantity = 10",null,{"v":0,"d":"0%"},3900,0,{"$f":"G74*F74","v":0},{"$f":"E74*H74","v":0}]
[]
[null,"TOTAL BID PRICE  (EXCL VAT)",{"$nulls":5},{"$f":"SUBTOTAL(9,H20:H75)","v":0},{"$f":"SUBTOTAL(9,I20:I75)","v":0}]
[null,"VAT (@15%)",{"$nulls":5},{"$f":"H76*0.15","v":0}]
[null,"TOTAL  BID PRICE (INCL VAT)",{"$nulls":5},{"$f":"H76+H77","v":0}]
[]
[]
[null,"I, the bidder, confirm that the price(s) and rate(s) quoted cover all the goods and/or works specified in the bidding documents; that the price(s) or rate(s) cover all my obligations and I accept that any mistakes regarding price(s), rate(s) or calculations will be at my own risk.\n[Note: First convert to PDF, then add signature]"]
[{"$nulls":3},"Name",null,"Capacity"]
[]
[{"$nulls":3},"Signature (above)",null,"Date"]

{"sheet":"Sheet1","index":1,"n_rows":56,"n_cols":6,"rows_kept":56}
[]
[]
["Line Number","Part Number","Description","Service Duration","Lead Time","Quantity"]
["1.0","C9800-40-K9","Cisco Catalyst 9800-40 Wireless Controller","---",182,3]
["1.0.1","CON-SSSNT-C98004KA","SOLN SUPP 8X5XNBD Cisco Catalyst 9800-40 Wireless Controll",36,"N/A",3]
["1.1","LIC-C9800-DTLS-K9","Cisco Catalyst 9800 Series Wireless Controller DTLS License","---",21,3]
["1.2","SC980040K9-173","Cisco Catalyst 9800-40 Wireless Controller","---",28,3]
["1.3","C9800-PWR-BLANK","Cisco 9800 Wireless Controller PS Blank","---",28,3]
["1.4","C9800-AC-750W-R","Cisco Catalyst 9800-40 750W AC Power Supply","---",28,3]
["1.5","CAB-IND","AC Power Cord (India)","---",7,3]
["1.6","NETWORK-PNP-LIC","Network Plug-n-Play Connect for zero-touch device deployment","---",3,3]
["2.0","C9800-L-F-K9","Cisco Catalyst 9800-L Wireless Controller_Fiber Uplink","---",70,8]
["2.0.1","CON-SSSNT-C9800LFL","SOLN SUPP 8X5XNBD Cisco Catalyst 9800-L Wireless Controlle",36,"N/A",8]
["2.1","LIC-C9800-DTLS-K9","Cisco Catalyst 9800 Series Wireless Controller DTLS License","---",21,8]
["2.2","SC9800LK9-173","Cisco Catalyst 9800-L Wireless Controller","---",28,8]
["2.3","C9800L-RMNT","C9800 Wireless Controller Rack Mount Tray","---",56,8]
["2.4","C9800-AC-110W","Cisco Catalyst 9800 L Wireless Controller Power Supply","---",56,8]
["2.5","NETWORK-PNP-LIC","Network Plug-n-Play Connect for zero-touch device deployment","---",3,8]
["2.6","CAB-AC-C5-SAF","AC Power Cord, Type C5,  South Africa","---",7,8]
["3.0","C9200L-48P-4X-E","Catalyst 9200L 48-port PoE+, 4 x 10G, Network Essentials","---",56,80]
["3.0.1","CON-SSSNT-C9200L4X","SOLN SUPP 8X5XNBD Catalyst 9200L 48-port PoE+, 4 x 10G, Ne",36,"N/A",80]
["3.1","C9200L-NW-E-48","C9200L Network Essentials, 48-port license","---",14,80]
["3.2","CAB-TA-IN","India AC Type A Power Cable","---",14,160]
["3.3","C9200-STACK-BLANK","Catalyst 9200 Blank Stack Module","---",14,160]
["3.4","C9200L-DNA-E-48","C9200L Cisco DNA Essentials, 48-port Term license","---",14,80]
["3.4.0.1","C9200L-DNA-E-48-3Y","C9200L Cisco DNA Essentials, 48-port, 3 Year Term license",36,"N/A",80]
["3.4.0.2","CON-SSTCM-C92LE48","SOLN SUPP SW SUBC9200L Cisco DNA Ess",36,"N/A",80]
["3.5","NETWORK-PNP-LIC","Network Plug-n-Play Connect for zero-touch device deployment","---",3,80]
["3.6","PWR-C5-1KWAC/2","1KW AC Config 5 Power Supply - Secondary Power Supply","---",56,80]
["4.0","C9200L-24P-4X-E","Catalyst 9200L 24-port PoE+, 4 x 10G, Network Essentials","---",56,40]
["4.0.1","CON-SSSNT-C920024X","SOLN SUPP 8X5XNBD Catalyst 9200L 24-port PoE+, 4 x 10G, Ne",36,"N/A",40]
["4.1","C9200L-NW-E-24","C9200L Network Essentials, 24-port license","---",14,40]
["4.2","CAB-TA-IN","India AC Type A Power Cable","---",14,80]
["4.3","C9200-STACK-BLANK","Catalyst 9200 Blank Stack Module","---",14,80]
["4.4","C9200L-DNA-E-24","C9200L Cisco DNA Essentials, 24-port Term license","---",14,40]
["4.4.0.1","C9200L-DNA-E-24-3Y","C9200L Cisco DNA Essentials, 24-port, 3 Year Term license",36,"N/A",40]
["4.4.0.2","CON-SSTCM-C92LE24","SOLN SUPP SW SUBC9200L Cisco DNA Ess",36,"N/A",40]
["4.5","NETWORK-PNP-LIC","Network Plug-n-Play Connect for zero-touch device deployment","---",3,40]
["4.6","PWR-C5-600WAC/2","600W AC Config 5 Power Supply - Secondary Power Supply","---",56,40]
["5.0","CW9162I-ROW","Catalyst Wireless 9162I AP (W6E, tri-band 2x2) w/Reg ROW","---",87,3900]
["5.0.1","CON-SSSNT-CW9162RW","SOLN SUPP 8X5XNBD CAT WLS 9162I AP W6E tri-band 2x2 ROW",36,"N/A",3900]
["5.1","SW9162-CAPWAP-K9","Capwap software for Catalyst 9162I","---",28,3900]
["5.2","AIR-AP-T-RAIL-R","Ceiling Grid Clip for APs & Cellular Gateways-Recessed","---",28,3900]
["5.3","AIR-AP-BRACKET-1","802.11 AP Low Profile Mounting Bracket (Default)","---",28,3900]
["5.4","CDNA-E-C9162","Wireless Cisco DNA  On-Prem Essential, 9162 Tracking","---",28,3900]
["5.4.0.1","DNA-E-3Y-C9162","C9162I Cisco DNA On-Prem Advantage,5Y Term,Trk Lic",36,"N/A",3900]
["5.5","AIR-DNA-E","Wireless Cisco DNA On-Prem Essential, Term Lic","---",3,3900]
["5.5.0.1","AIR-DNA-E-3Y","Wireless Cisco DNA On-Prem Essential, 3Y Term Lic",36,"N/A",3900]
["5.5.0.2","CON-SSTCM-AIRDNAE","SOLN SUPP SW SUBAironet CISCO DNA Es",36,"N/A",3900]
["5.6","PI-LFAS-AP-T","Prime AP Term Licenses","---",6,3900]
["5.6.0.1","PI-LFAS-AP-T-3Y","PI Dev Lic for Lifecycle & Assurance Term 3Y",36,"N/A",3900]
["5.7","AIR-DNA-E-T","Wireless Cisco DNA On-Prem Essential, Term, Tracker Lic","---",6,3900]
["5.7.0.1","AIR-DNA-E-T-3Y","Wireless Cisco DNA On-Prem Essential, 3Y Term, Tracker Lic",36,"N/A",3900]
["5.8","AIR-DNA-NWSTACK-E","AIR CISCO DNA Perpetual Network Stack","---",28,3900]
["5.9","NETWORK-PNP-LIC","Network Plug-n-Play Connect for zero-touch device deployment","---",3,3900]
["5.10","CW9162I-MULTI","Minimum Quantity = 10","---",21,3900]